bitfinex/quotes_BTCUSD_20230101
["timestamp","ask_amount","ask_price","bid_price","bid_amount"]
[1672534100132,0.54349231,16552.0,16551.0,2.50188536]
[1672534106485,0.54349231,16552.0,16551.0,1.80188536]
[1672534106976,0.54349231,16552.0,16551.0,1.18246736]
[1672534107592,0.61040446,16553.0,16551.0,1.88246736]
[1672534107785,0.61040446,16553.0,16552.0,0.619418]
[1672534107973,0.61040446,16553.0,16552.0,0.72366339]
[1672534109010,0.61040446,16553.0,16552.0,1.42366339]
[1672534109268,0.61040446,16553.0,16552.0,1.55754]
[1672534109514,0.52484501,16554.0,16552.0,1.55766339]
[1672534109762,0.61169906,16553.0,16552.0,1.55766339]
[1672534110010,0.61169874,16553.0,16552.0,1.55766339]
[1672534110250,0.52484501,16554.0,16552.0,1.55766339]
[1672534110764,0.52484501,16554.0,16552.0,1.42366339]
[1672534111006,0.52484501,16554.0,16552.0,1.47266339]
[1672534111248,0.52484501,16554.0,16552.0,1.99765775]
[1672534113467,0.52484501,16554.0,16553.0,0.19976578]
[1672534114238,0.89160201,16555.0,16553.0,0.73002074]
[1672534114503,0.89160201,16555.0,16553.0,1.23025496]
[1672534114504,0.56598205,16555.0,16553.0,1.23025496]
[1672534114753,0.56598205,16555.0,16553.0,1.27925496]
[1672534115505,0.56598205,16555.0,16553.0,1.23025496]
[1672534115754,0.56798205,16555.0,16553.0,1.23025496]
[1672534116489,0.56805455,16555.0,16553.0,1.23025496]
[1672534116729,1.45965656,16555.0,16553.0,1.23025496]
[1672534117496,1.45958406,16555.0,16553.0,1.23025496]
[1672534118232,1.45958406,16555.0,16554.0,0.00108583]
[1672534118485,1.45958406,16555.0,16554.0,0.7]
[1672534118998,1.45958406,16555.0,16554.0,0.6999043]
[1672534119737,1.45758406,16555.0,16554.0,0.6999043]
[1672534119990,1.45958406,16555.0,16554.0,0.6999043]
[1672534120235,0.56798205,16555.0,16554.0,0.6999043]
[1672534120476,1.45958406,16555.0,16554.0,0.6999043]
[1672534120962,0.56798205,16555.0,16554.0,0.6999043]
[1672534121474,1.45958406,16555.0,16554.0,0.6999043]
[1672534122496,0.002,16555.0,16554.0,1.0886547]
[1672534122764,0.002,16555.0,16554.0,1.30959237]
[1672534123250,0.002,16555.0,16554.0,1.47942665]
[1672534127064,0.002,16555.0,16554.0,1.57766972]
[1672534128568,0.002,16555.0,16554.0,1.96642012]
[1672534128873,0.002,16555.0,16554.0,1.57766972]
[1672534129078,0.61414201,16555.0,16554.0,1.57766972]
[1672534129315,0.61414201,16555.0,16554.0,1.96642012]
[1672534129571,0.61414201,16555.0,16554.0,1.57766972]
[1672534130341,0.61414201,16555.0,16554.0,1.57760846]
[1672534131093,0.61414201,16555.0,16554.0,1.35667079]
[1672534131352,0.61414201,16555.0,16554.0,2.6019594]
[1672534132119,0.002,16555.0,16554.0,2.6019594]
[1672534132678,0.002,16555.0,16554.0,2.813209]
[1672534132859,0.002,16555.0,16554.0,3.2019594]
[1672534133108,0.5458249,16555.0,16554.0,3.2019594]
[1672534133364,0.002,16555.0,16554.0,3.2019594]
[1672534133851,0.002,16555.0,16554.0,2.813209]
[1672534134104,0.002,16555.0,16554.0,2.193791]
[1672534134613,0.002,16555.0,16554.0,2.813209]
[1672534136485,0.002,16555.0,16554.0,3.2019594]
[1672534136651,0.002,16555.0,16554.0,2.813209]
[1672534137157,0.002,16555.0,16554.0,2.193791]
[1672534137711,0.002,16555.0,16554.0,3.2019594]
[1672534137935,0.54558738,16555.0,16554.0,3.2019594]
[1672534138164,0.002,16555.0,16554.0,3.2019594]
[1672534138405,0.54557621,16555.0,16554.0,3.2019594]
[1672534138640,0.54557621,16555.0,16554.0,2.5825414]
[1672534138901,0.002,16555.0,16554.0,2.5825414]
[1672534139390,0.61214201,16556.0,16554.0,2.5825414]
[1672534139638,0.002,16555.0,16554.0,2.41270712]
[1672534139891,0.61214201,16556.0,16554.0,2.41270712]
[1672534140140,0.61214201,16556.0,16554.0,2.55470712]
[1672534140391,0.61214201,16556.0,16554.0,2.41270712]
[1672534140634,0.61214201,16556.0,16554.0,1.84686408]
[1672534141143,0.61214201,16556.0,16555.0,1.29726141]
[1672534141893,0.61214201,16556.0,16555.0,1.99726141]
[1672534142648,0.61214201,16556.0,16555.0,2.13126141]
[1672534143676,0.61214201,16556.0,16555.0,2.52001181]
[1672534147205,0.61214201,16557.0,16555.0,2.62685481]
[1672534147463,0.61214201,16557.0,16555.0,1.434]
[1672534147464,0.54335839,16556.0,16555.0,1.434]
[1672534147739,0.54335839,16556.0,16555.0,2.4421684]
[1672534148488,0.54335839,16557.0,16555.0,2.4421684]
[1672534148735,0.54335839,16556.0,16555.0,1.434]
[1672534149004,0.54335839,16556.0,16555.0,2.4421684]
[1672534149482,0.54335839,16556.0,16555.0,2.3081684]
[1672534149724,0.54335839,16556.0,16555.0,2.3571684]
[1672534149973,0.54335839,16556.0,16555.0,2.3081684]
[1672534150228,0.54335839,16556.0,16555.0,2.88736454]
[1672534150229,0.54325572,16556.0,16555.0,2.88736454]
[1672534150466,0.54325572,16556.0,16555.0,2.4421684]
[1672534150720,0.54325572,16556.0,16555.0,2.9288646]
[1672534150971,0.54325572,16556.0,16555.0,2.4421684]
[1672534151215,0.54325572,16556.0,16555.0,2.37761592]
[1672534151456,0.54325572,16556.0,16555.0,1.8227504]
[1672534151712,0.54327885,16556.0,16555.0,1.8227504]
[1672534152197,1.21634752,16557.0,16555.0,1.434]
[1672534152443,1.21634752,16557.0,16555.0,1.8227504]
[1672534152931,1.21634752,16557.0,16555.0,1.3]
[1672534153175,1.21634752,16557.0,16555.0,1.7377504]
[1672534153176,0.61214201,16556.0,16555.0,1.7377504]
[1672534153434,0.61214201,16556.0,16555.0,2.09058752]
[1672534153654,1.21634752,16557.0,16555.0,2.71000552]
[1672534153930,1.21634752,16557.0,16555.0,2.09167328]
[1672534154184,1.21634752,16557.0,16555.0,2.69999538]
[1672534154682,0.60420551,16557.0,16556.0,0.57344968]
[1672534154937,0.01081893,16559.0,16556.0,1.39775001]
[1672534155196,0.61129986,16557.0,16556.0,2.02656043]
[1672534155446,0.01081893,16559.0,16556.0,1.39775001]
[1672534155700,0.01081893,16559.0,16556.0,2.02656043]
[1672534156217,0.54780545,16558.0,16556.0,2.07556043]
[1672534156462,0.54780545,16558.0,16556.0,1.39775001]
[1672534156713,0.54780545,16558.0,16556.0,1.40075001]
[1672534157512,0.54780545,16558.0,16556.0,1.39775001]
[1672534158250,0.54980545,16558.0,16556.0,1.27344968]
[1672534158762,0.54980545,16558.0,16556.0,0.7]
[1672534159017,7.25e-05,16557.0,16556.0,0.7]
[1672534159260,0.1058525,16557.0,16556.0,0.7]
[1672534159513,0.55029047,16557.0,16556.0,0.7]
[1672534159999,0.55021797,16557.0,16556.0,0.7]
[1672534160752,0.55021797,16557.0,16556.0,0.749]
[1672534161000,0.44443797,16557.0,16556.0,0.749]
[1672534161502,0.44443797,16557.0,16556.0,0.7]
[1672534161774,0.44643797,16557.0,16556.0,0.703]
[1672534162029,0.44443797,16557.0,16556.0,0.7]
[1672534162274,0.44643797,16557.0,16556.0,0.703]
[1672534163015,0.44643797,16557.0,16556.0,0.70408569]
[1672534164004,0.44643797,16557.0,16556.0,0.703]
[1672534164258,0.44643797,16557.0,16556.0,0.70408569]
[1672534164498,1.33803998,16557.0,16556.0,0.70408569]
[1672534164751,1.33803998,16557.0,16556.0,0.703]
[1672534165010,1.33803998,16557.0,16556.0,0.70408569]
[1672534165268,1.33803998,16557.0,16556.0,0.703]
[1672534165508,1.33811248,16557.0,16556.0,0.703]
[1672534165720,1.33803998,16557.0,16556.0,0.703]
[1672534166516,1.33811248,16557.0,16556.0,0.703]
[1672534166776,1.33803998,16557.0,16556.0,0.703]
[1672534168301,1.33811248,16557.0,16556.0,0.703]
[1672534168557,0.13581125,16557.0,16556.0,0.703]
[1672534168806,0.47440628,16557.0,16556.0,0.703]
[1672534169061,0.77440628,16557.0,16556.0,0.703]
[1672534169318,0.77440628,16557.0,16556.0,0.49090263]
[1672534169319,0.77447878,16557.0,16556.0,0.49090263]
[1672534169824,0.47440628,16557.0,16556.0,0.49090263]
[1672534170080,0.47440628,16557.0,16556.0,0.003]
[1672534170378,0.47447878,16557.0,16556.0,0.003]
[1672534171137,0.47440628,16557.0,16556.0,0.003]
[1672534171418,1.36623716,16557.0,16556.0,0.003]
[1672534173244,1.36616466,16557.0,16556.0,0.003]
[1672534173732,1.36623716,16557.0,16556.0,0.003]
[1672534174304,1.36616466,16557.0,16556.0,0.003]
[1672534174990,1.36623716,16557.0,16556.0,0.003]
[1672534175249,1.36616466,16557.0,16556.0,0.003]
[1672534176234,1.36623716,16557.0,16556.0,0.003]
[1672534176788,1.36616466,16557.0,16556.0,0.003]
[1672534178250,1.36623716,16557.0,16556.0,0.003]
[1672534178744,1.36616466,16557.0,16556.0,0.003]
[1672534179251,1.36623716,16557.0,16556.0,0.003]
[1672534179741,0.5900801,16556.0,16555.0,0.04082107]
[1672534180252,0.5900801,16556.0,16555.0,0.7]
[1672534181253,0.5950801,16556.0,16555.0,0.7]
[1672534186247,0.5950801,16556.0,16554.0,1.031892]
[1672534186757,0.5950801,16556.0,16554.0,0.64296482]
[1672534187007,0.5900801,16556.0,16554.0,0.64296482]
[1672534187257,0.5900801,16556.0,16555.0,0.7]
[1672534187508,0.7432712,16556.0,16555.0,0.7]
[1672534188012,0.7382712,16556.0,16555.0,0.7]
[1672534188539,0.7432712,16556.0,16555.0,0.7]
[1672534190262,0.5950801,16556.0,16555.0,0.7]
[1672534190757,0.5900801,16556.0,16555.0,0.7]
[1672534190999,0.5950801,16556.0,16555.0,0.7]
[1672534191496,1.48683848,16556.0,16555.0,0.7]
[1672534192119,0.5950801,16556.0,16555.0,0.7]
[1672534192378,0.74376395,16556.0,16555.0,0.7]
[1672534192617,1.63552233,16556.0,16555.0,0.7]
[1672534193161,1.63552233,16556.0,16554.0,1.031892]
[1672534193376,1.63552233,16556.0,16554.0,0.64296482]
[1672534194132,1.48183848,16556.0,16555.0,0.7]
[1672534194389,1.48683848,16556.0,16555.0,0.7]
[1672534195419,1.48183848,16556.0,16555.0,0.7]
[1672534195917,1.48683848,16556.0,16555.0,0.7]
[1672534198403,1.48183848,16556.0,16555.0,0.7]
[1672534198646,1.48683848,16556.0,16555.0,0.7]
[1672534198913,1.48183848,16556.0,16555.0,0.7]
[1672534199159,1.54841849,16556.0,16555.0,0.7]
[1672534201534,1.48683848,16556.0,16555.0,0.7]
[1672534201806,1.48683848,16556.0,16555.0,0.69988586]
[1672534204661,1.48683848,16556.0,16554.0,1.031892]
[1672534204857,1.48183848,16556.0,16554.0,1.031892]
[1672534205097,1.48683848,16556.0,16554.0,1.031892]
[1672534205374,1.48183848,16556.0,16554.0,1.031892]
[1672534205611,1.48683848,16556.0,16555.0,0.7]
[1672534206091,0.5950801,16556.0,16555.0,0.7]
[1672534206585,1.48296537,16556.0,16555.0,0.7]
[1672534206855,1.48796537,16556.0,16555.0,0.704]
[1672534208233,0.5950801,16556.0,16555.0,0.704]
[1672534209143,1.48818968,16556.0,16555.0,0.704]
[1672534209394,0.5950801,16556.0,16555.0,0.704]
[1672534211829,1.48827931,16556.0,16555.0,0.704]
[1672534212961,1.48327931,16556.0,16555.0,0.7]
[1672534213453,1.48827931,16556.0,16555.0,0.704]
[1672534214513,1.48327931,16556.0,16555.0,0.7]
[1672534215046,1.48827931,16556.0,16555.0,0.7]
[1672534216938,1.48827931,16556.0,16554.0,1.031892]
[1672534217985,1.48827931,16556.0,16555.0,0.7]
[1672534218246,1.48320324,16556.0,16555.0,0.7]
[1672534218520,0.5950801,16556.0,16555.0,0.7]
[1672534219034,0.5900801,16556.0,16555.0,0.7]
[1672534219529,0.5950801,16556.0,16555.0,0.7]
[1672534220290,0.5951526,16556.0,16555.0,0.7]
[1672534220544,0.5950801,16556.0,16555.0,0.7]
[1672534221065,0.65458811,16556.0,16555.0,0.7]
[1672534221561,0.65466061,16556.0,16555.0,0.7]
[1672534221809,0.65458811,16556.0,16555.0,0.7]
[1672534222056,0.5950801,16556.0,16555.0,0.69990361]
[1672534224582,0.5950801,16556.0,16554.0,1.031892]
[1672534224838,0.89298426,16555.0,16554.0,0.09824307]
[1672534225088,1.11049,16555.0,16554.0,0.09824307]
[1672534225348,0.17056426,16555.0,16554.0,0.09824307]
[1672534225631,0.89267011,16555.0,16554.0,0.09824307]
[1672534226131,0.89267011,16555.0,16554.0,0.14824307]
[1672534227651,0.89267011,16555.0,16554.0,0.09824307]
[1672534227890,0.90167011,16555.0,16554.0,0.09824307]
[1672534232128,0.90174261,16555.0,16554.0,0.09824307]
[1672534232638,0.90167011,16555.0,16554.0,0.09824307]
[1672534235149,1.05084513,16555.0,16554.0,0.09824307]
[1672534235642,1.05091763,16555.0,16554.0,0.09824307]
[1672534235910,1.05084513,16555.0,16554.0,0.09824307]
[1672534236428,0.90167011,16555.0,16554.0,0.09824307]
[1672534236712,0.90174261,16555.0,16554.0,0.09824307]
[1672534236941,0.90167011,16555.0,16554.0,0.09824307]
[1672534239135,0.90167011,16555.0,16554.0,0.05737207]
[1672534239642,0.90174261,16555.0,16554.0,0.05737207]
[1672534239886,0.90167011,16555.0,16554.0,0.05737207]
[1672534240628,0.90174261,16555.0,16554.0,0.05737207]
[1672534240899,0.90167011,16555.0,16554.0,0.05737207]
[1672534242630,1.05084513,16555.0,16554.0,0.05737207]
[1672534242874,0.90167011,16555.0,16554.0,0.05737207]
[1672534243113,0.90174261,16555.0,16554.0,0.05737207]
[1672534243609,0.90167011,16555.0,16554.0,0.05737207]
[1672534249691,0.90174261,16555.0,16554.0,0.05737207]
[1672534249935,0.90167011,16555.0,16554.0,0.05737207]
[1672534251184,0.90174261,16555.0,16554.0,0.05737207]
[1672534251435,0.90167011,16555.0,16554.0,0.05737207]
[1672534252172,1.05084513,16555.0,16554.0,0.05737207]
[1672534252438,1.05091763,16555.0,16554.0,0.05737207]
[1672534253165,1.64811628,16555.0,16554.0,0.05737207]
[1672534254447,1.64804378,16555.0,16554.0,0.05737207]
[1672534255171,1.49886876,16555.0,16554.0,0.05737207]
[1672534255421,1.49894126,16555.0,16554.0,0.05737207]
[1672534255677,0.60627115,16555.0,16554.0,0.05737207]
[1672534255924,0.82377689,16555.0,16554.0,0.05737207]
[1672534256173,0.90627115,16555.0,16554.0,0.04161289]
[1672534256978,1.09490008,16555.0,16554.0,0.04161289]
[1672534257221,0.90627115,16555.0,16554.0,0.04161289]
[1672534257728,0.60627115,16555.0,16554.0,0.04161289]
[1672534259192,0.90627115,16555.0,16554.0,0.04161289]
[1672534263226,0.90627115,16555.0,16554.0,0.03029929]
[1672534266284,0.60627115,16555.0,16554.0,0.03029929]
[1672534266523,0.66689826,16555.0,16554.0,0.03029929]
[1672534266782,0.96689826,16555.0,16554.0,0.03029929]
[1672534267000,0.66689826,16555.0,16554.0,0.03029929]
[1672534267757,0.96689826,16555.0,16554.0,0.03029929]
[1672534268488,0.96682576,16555.0,16554.0,0.03029929]
[1672534268737,0.66682576,16555.0,16554.0,0.03029929]
[1672534271473,0.96682576,16555.0,16554.0,0.03029929]
[1672534272202,0.96689826,16555.0,16554.0,0.03029929]
[1672534273969,0.66689826,16555.0,16554.0,0.03029929]
[1672534274214,0.66682576,16555.0,16554.0,0.03029929]
[1672534275470,0.66689826,16555.0,16554.0,0.03029929]
[1672534276990,0.66682576,16555.0,16554.0,0.03029929]
[1672534278230,0.96682576,16555.0,16554.0,0.02976619]
[1672534278484,0.90627115,16555.0,16554.0,0.02976619]
[1672534278995,0.60627115,16555.0,16554.0,0.02976619]
[1672534279482,0.90627115,16555.0,16554.0,0.02976619]
[1672534284510,0.60627115,16555.0,16554.0,0.02976619]
[1672534285011,1.00563778,16555.0,16554.0,0.02976619]
[1672534294739,1.00563778,16555.0,16554.0,0.02172346]
[1672534300788,1.00563778,16555.0,16554.0,0.01587205]
[1672534304772,0.0090725,16555.0,16554.0,0.01587205]
[1672534305047,0.009,16555.0,16554.0,0.53120048]
[1672534309640,0.0090725,16555.0,16554.0,0.53120048]
[1672534310194,0.61866392,16555.0,16554.0,0.53120048]
[1672534310438,0.61866392,16555.0,16554.0,0.01587205]
[1672534310950,0.61859142,16555.0,16554.0,0.01587205]
[1672534311242,0.61866392,16555.0,16554.0,0.01587205]
[1672534311500,0.61859142,16555.0,16554.0,0.01587205]
[1672534312263,0.61866392,16555.0,16554.0,0.01587205]
[1672534312508,0.71926982,16555.0,16554.0,0.01587205]
[1672534316481,0.71919732,16555.0,16554.0,0.01587205]
[1672534318332,0.71926982,16555.0,16554.0,0.01587205]
[1672534319712,0.71919732,16555.0,16554.0,0.01587205]
[1672534320081,0.71926982,16555.0,16554.0,0.01587205]
[1672534320409,0.71919732,16555.0,16554.0,0.01587205]
[1672534322157,0.71926982,16555.0,16554.0,0.01587205]
[1672534322674,0.71919732,16555.0,16554.0,0.01587205]
[1672534323399,0.61866392,16555.0,16554.0,0.01577373]
[1672534323651,0.61859142,16555.0,16554.0,0.01577373]
[1672534325934,0.61866392,16555.0,16554.0,0.01577373]
[1672534331726,0.61859142,16555.0,16554.0,0.01577373]
[1672534331999,0.61859142,16555.0,16554.0,0.08654163]
[1672534332717,0.71919007,16555.0,16554.0,0.08654163]
[1672534335357,0.71926257,16555.0,16554.0,0.08654163]
[1672534336890,0.61859142,16555.0,16554.0,0.08654163]
[1672534338638,0.61866392,16555.0,16554.0,0.08654163]
[1672534339912,0.61859142,16555.0,16554.0,0.08654163]
[1672534343423,0.61866392,16555.0,16554.0,0.08647187]
[1672534347062,0.61859142,16555.0,16554.0,0.08647187]
[1672534348557,0.71919007,16555.0,16554.0,0.08647187]
[1672534350825,0.71926257,16555.0,16554.0,0.08647187]
[1672534351562,0.71919007,16555.0,16554.0,0.08647187]
[1672534353024,0.71926257,16555.0,16554.0,0.08647187]
[1672534353552,0.61859142,16555.0,16554.0,0.94757012]
[1672534353798,0.61859142,16555.0,16554.0,0.64221264]
[1672534355810,0.61866392,16555.0,16554.0,0.64221264]
[1672534356090,0.61859142,16555.0,16554.0,0.64221264]
[1672534359261,0.61859142,16555.0,16554.0,0.08647187]
[1672534359504,0.61866392,16555.0,16554.0,0.08647187]
[1672534361748,0.61859142,16555.0,16554.0,0.08647187]
[1672534362507,0.61866392,16555.0,16554.0,0.08647187]
[1672534362754,0.61859142,16555.0,16554.0,0.08647187]
[1672534363483,0.61866392,16555.0,16554.0,0.08647187]
[1672534365466,0.61859142,16555.0,16554.0,0.08647187]
[1672534366523,0.61859142,16555.0,16554.0,0.08635748]
[1672534366759,0.61866392,16555.0,16554.0,0.08635748]
[1672534367057,0.61859142,16555.0,16554.0,0.08635748]
[1672534376032,0.61866392,16555.0,16554.0,0.08635748]
[1672534376294,0.61859142,16555.0,16554.0,0.08635748]
[1672534381239,0.61866392,16555.0,16554.0,0.08635748]
[1672534382264,0.61859142,16555.0,16554.0,0.08635748]
[1672534384531,0.61866392,16555.0,16554.0,0.08635748]
[1672534385149,0.61859142,16555.0,16554.0,0.08635748]
[1672534389792,0.61866392,16555.0,16554.0,0.08635748]
[1672534390046,0.61859142,16555.0,16554.0,0.08629319]
[1672534390532,0.61866392,16555.0,16554.0,0.08629319]
[1672534391053,0.61859142,16555.0,16554.0,0.08629319]
[1672534391812,0.61866392,16555.0,16554.0,0.08629319]
[1672534392107,0.61859142,16555.0,16554.0,0.08629319]
[1672534392806,0.61866392,16555.0,16554.0,0.08629319]
[1672534393305,0.61859142,16555.0,16554.0,0.08629319]
[1672534395849,0.60959142,16555.0,16554.0,0.08629319]
[1672534396340,0.64659142,16555.0,16554.0,0.09029319]
[1672534396839,0.64666392,16555.0,16554.0,0.09029319]
[1672534397587,0.64659142,16555.0,16554.0,0.09029319]
[1672534401446,0.64659142,16555.0,16554.0,0.66970581]
[1672534401717,0.64659142,16555.0,16554.0,1.28912381]
[1672534402179,0.64659142,16555.0,16554.0,1.28512381]
[1672534402430,0.60959142,16555.0,16554.0,1.28512381]
[1672534403111,0.60959142,16555.0,16554.0,0.66570581]
[1672534406307,1.28001816,16557.0,16554.0,0.66570581]
[1672534406554,0.48188132,16556.0,16554.0,0.90576583]
[1672534406804,0.78188132,16556.0,16554.0,0.66570581]
[1672534407043,0.78195382,16556.0,16554.0,0.66570581]
[1672534407562,0.78195382,16556.0,16554.0,0.67370581]
[1672534407829,0.78195382,16556.0,16554.0,0.08629319]
[1672534408074,0.81795382,16556.0,16554.0,0.09429319]
[1672534408355,0.78195382,16556.0,16554.0,0.08629319]
[1672534408630,0.57196819,16555.0,16554.0,0.08629319]
[1672534410101,0.60896819,16555.0,16554.0,0.08629319]
[1672534410618,0.64596819,16555.0,16554.0,0.09029319]
[1672534411150,0.57196819,16555.0,16554.0,0.09029319]
[1672534411379,0.60896819,16555.0,16554.0,0.09029319]
[1672534413118,0.60887663,16555.0,16554.0,0.09029319]
[1672534417647,0.037,16555.0,16554.0,0.53712033]
[1672534422744,0.0370725,16555.0,16554.0,0.53712033]
[1672534422997,0.037,16555.0,16554.0,0.53712033]
[1672534426635,0.037,16555.0,16554.0,0.52159504]
[1672534429102,0.0370725,16555.0,16554.0,0.52159504]
[1672534429584,0.037,16555.0,16554.0,0.52159504]
[1672534432602,0.0370725,16555.0,16554.0,0.52159504]
[1672534432847,0.037,16555.0,16554.0,0.52159504]
[1672534434137,0.0370725,16555.0,16554.0,0.52159504]
[1672534434373,0.037,16555.0,16554.0,0.52159504]
[1672534435133,0.0370725,16555.0,16554.0,0.52159504]
[1672534435413,0.037,16555.0,16554.0,0.52159504]
[1672534436682,0.037,16555.0,16554.0,0.52150301]
[1672534439743,0.93028593,16555.0,16554.0,0.52150301]
[1672534441006,0.037,16555.0,16554.0,0.52150301]
[1672534441256,0.9302706,16555.0,16554.0,0.52150301]
[1672534441516,0.0370725,16555.0,16554.0,0.52150301]
[1672534441736,0.93028371,16555.0,16554.0,0.52150301]
[1672534442017,0.037,16555.0,16554.0,0.52150301]
[1672534442961,0.93025648,16555.0,16554.0,0.52150301]
[1672534444671,0.93025442,16555.0,16554.0,0.52150301]
[1672534445265,0.93032692,16555.0,16554.0,0.52150301]
[1672534445507,0.93025442,16555.0,16554.0,0.52150301]
[1672534447409,0.93032692,16555.0,16554.0,0.52150301]
[1672534447630,0.93025442,16555.0,16554.0,0.52150301]
[1672534448664,0.93032692,16555.0,16554.0,0.52150301]
[1672534448904,0.93025442,16555.0,16554.0,0.52150301]
[1672534449168,0.93025442,16555.0,16554.0,1.22150301]
[1672534452831,0.93025442,16555.0,16554.0,1.84895813]
[1672534453093,0.037,16555.0,16554.0,2.02154899]
[1672534453359,0.037,16555.0,16554.0,2.39295494]
[1672534454917,0.037,16555.0,16554.0,2.00555984]
[1672534455170,0.037,16555.0,16554.0,2.39295494]
[1672534456410,0.037,16555.0,16554.0,2.00555984]
[1672534456657,0.037,16555.0,16554.0,2.39295494]
[1672534456912,0.037,16555.0,16554.0,2.63225043]
[1672534457412,0.037,16555.0,16554.0,2.02078446]
[1672534458687,0.037,16555.0,16554.0,2.57854686]
[1672534458940,0.64884748,16555.0,16554.0,2.57854686]
[1672534459454,0.037,16555.0,16554.0,2.57854686]
[1672534459708,0.64885159,16555.0,16554.0,2.57854686]
[1672534459952,0.037,16555.0,16554.0,2.57854686]
[1672534460440,0.64885145,16555.0,16554.0,2.57854686]
[1672534460941,0.64885145,16555.0,16554.0,2.56948502]
[1672534461698,0.64885145,16555.0,16554.0,2.56942035]
[1672534463173,0.64885145,16555.0,16554.0,2.02071979]
[1672534463444,0.64885145,16555.0,16554.0,2.52195328]
[1672534463697,0.64885145,16555.0,16554.0,2.13455818]
[1672534463944,0.64885145,16555.0,16554.0,2.52195328]
[1672534465789,0.037,16555.0,16554.0,2.52195328]
[1672534466823,0.037,16555.0,16554.0,2.02071979]
[1672534467307,0.037,16555.0,16554.0,2.4743577]
[1672534467561,0.037,16555.0,16554.0,2.0869626]
[1672534467810,0.64885145,16555.0,16554.0,2.0869626]
[1672534468077,0.64885145,16555.0,16554.0,1.4675446]
[1672534469608,0.64885145,16555.0,16554.0,1.8549397]
[1672534470101,0.64885145,16555.0,16554.0,1.4675446]
[1672534471338,0.64885145,16555.0,16554.0,1.22824911]
[1672534471601,0.0370725,16555.0,16554.0,1.22824911]
[1672534471850,0.037,16555.0,16554.0,1.22824911]
[1672534478791,0.037,16555.0,16554.0,0.52824911]
[1672534479843,0.037,16555.0,16554.0,1.22824911]
[1672534480096,0.037,16555.0,16554.0,1.38981353]
[1672534485004,0.037,16555.0,16554.0,1.38971242]
[1672534485895,0.037,16555.0,16554.0,0.68971242]
[1672534486142,0.037,16555.0,16554.0,0.71127794]
[1672534486970,0.037,16555.0,16554.0,1.41127794]
[1672534487488,0.037,16555.0,16554.0,2.03069594]
[1672534491789,0.037,16555.0,16554.0,1.86913152]
[1672534496103,0.037,16555.0,16554.0,1.24971352]
[1672534498548,0.037,16555.0,16554.0,1.80288871]
[1672534498809,0.64926291,16555.0,16554.0,1.80288871]
[1672534499056,0.61226291,16555.0,16554.0,1.79888871]
[1672534499301,0.61426291,16555.0,16554.0,1.97877758]
[1672534499544,0.61426291,16555.0,16554.0,1.59138248]
[1672534499799,0.61426291,16555.0,16554.0,1.42730476]
[1672534500050,1.50247047,16558.0,16554.0,1.42730476]
[1672534500294,1.50247047,16558.0,16555.0,0.3873951]
[1672534500541,1.50247047,16558.0,16555.0,1.32745512]
[1672534500783,1.43207601,16557.0,16555.0,1.32745512]
[1672534501025,1.43207601,16557.0,16555.0,0.7]
[1672534501284,1.43207601,16557.0,16555.0,0.91034817]
[1672534501551,1.43214851,16557.0,16555.0,0.91034817]
[1672534501795,1.43414851,16557.0,16555.0,0.91034817]
[1672534502528,1.43414851,16557.0,16555.0,1.29774327]
[1672534502790,1.43407601,16557.0,16555.0,1.67137007]
[1672534503041,1.43407601,16557.0,16556.0,0.60408563]
[1672534503295,1.43414851,16557.0,16556.0,1.30408563]
[1672534503540,1.43407601,16557.0,16556.0,1.30408563]
[1672534504308,1.43414851,16557.0,16556.0,1.30408563]
[1672534504570,1.43407601,16557.0,16556.0,1.30408563]
[1672534507499,1.43407601,16557.0,16556.0,1.3040245]
[1672534512550,1.43407601,16557.0,16556.0,0.6040245]
[1672534513547,1.43407601,16557.0,16556.0,1.3040245]
[1672534515503,1.43407601,16557.0,16556.0,1.2940545]
[1672534519537,1.43407601,16557.0,16556.0,0.5940545]
[1672534520592,1.43407601,16557.0,16556.0,1.2940545]
[1672534524054,1.43414851,16557.0,16556.0,1.2940545]
[1672534524563,1.43407601,16557.0,16556.0,1.2940545]
[1672534528848,1.43414851,16557.0,16556.0,1.2940545]
[1672534529098,1.43407601,16557.0,16556.0,1.2940545]
[1672534531169,0.89525442,16557.0,16556.0,1.2940545]
[1672534533165,0.89525442,16557.0,16556.0,1.38599797]
[1672534537349,0.89532692,16557.0,16556.0,0.68592122]
[1672534538368,0.89525442,16557.0,16556.0,1.38592122]
[1672534539656,0.89525442,16557.0,16556.0,1.56325285]
[1672534540989,0.89525442,16557.0,16556.0,1.38592122]
[1672534544584,0.89525442,16557.0,16556.0,0.68592122]
[1672534545357,0.89525442,16557.0,16556.0,1.38592122]
[1672534545634,0.89525442,16557.0,16556.0,2.00533922]
[1672534551047,0.89525442,16557.0,16556.0,1.38592122]
[1672534551544,0.89525442,16557.0,16556.0,0.68592122]
[1672534552290,0.89525442,16557.0,16556.0,1.38592122]
[1672534554996,0.002,16557.0,16556.0,1.38592122]
[1672534555295,0.002,16557.0,16556.0,1.77331632]
[1672534555772,0.89525442,16557.0,16556.0,1.38592122]
[1672534556025,0.002,16557.0,16556.0,1.38592122]
[1672534556811,0.002,16557.0,16556.0,1.77331632]
[1672534557070,0.002,16557.0,16556.0,1.38592122]
[1672534558340,0.002,16557.0,16556.0,0.68592122]
[1672534559355,0.002,16557.0,16556.0,1.38592122]
[1672534560592,1.40278534,16558.0,16556.0,1.38584054]
[1672534560805,1.40278534,16558.0,16556.0,1.77323564]
[1672534561800,1.40278534,16558.0,16556.0,1.38584054]
[1672534562013,1.40285784,16558.0,16556.0,1.38584054]
[1672534562276,1.40285784,16558.0,16556.0,1.77323564]
[1672534562527,1.40278534,16558.0,16556.0,1.77323564]
[1672534563581,1.40278534,16558.0,16556.0,2.0005592]
[1672534563827,1.40278534,16558.0,16556.0,1.77323564]
[1672534564582,1.40285784,16558.0,16556.0,1.77323564]
[1672534565087,1.40285784,16558.0,16556.0,1.38584054]
[1672534565331,1.40278534,16558.0,16556.0,1.07323564]
[1672534566303,1.40278534,16558.0,16556.0,1.77323564]
[1672534568578,1.40285784,16558.0,16556.0,1.77323564]
[1672534569230,1.40278534,16558.0,16556.0,1.77323564]
[1672534570275,1.40285784,16558.0,16556.0,1.38584054]
[1672534570529,0.89325442,16557.0,16556.0,1.38584054]
[1672534573817,0.89332692,16557.0,16556.0,1.38584054]
[1672534574077,0.89325442,16557.0,16556.0,1.38584054]
[1672534577087,0.89325442,16557.0,16556.0,0.68584054]
[1672534578096,0.89325442,16557.0,16556.0,1.38584054]
[1672534578843,0.89325442,16557.0,16556.0,1.77323564]